[Event "RUS-ch Rapid 2021"]
[Site "Sochi"]
[Date "2021.10.13"]
[Round "6.7"]
[White "Bologan, Victor"]
[Black "Kukhmazov, Arsen"]
[Result "1-0"]
[ECO "B12"]
[WhiteElo "2574"]
[BlackElo "2472"]
[Annotator "RC"]
[PlyCount "79"]
[EventDate "2021.10.12"]
[EventType "swiss"]
[EventCountry "RUS"]
[SourceTitle "playchess.com"]
[Source "ChessBase"]
[SourceQuality "1"]
[TimeControl "900+10"]

1. e4 {[%emt 0:00:00]} c6 {[%emt 0:00:00]} 2. d4 {[%emt 0:00:00]} d5 {[%emt 0:
00:05]} 3. e5 {[%emt 0:00:02]} Bf5 {[%emt 0:00:00]} 4. Nf3 {[%emt 0:00:00]} e6
{[%emt 0:00:03]} 5. Nbd2 {[%emt 0:00:13]} c5 {[%emt 0:00:45]} 6. dxc5 {[%emt 0:
00:00]} Bxc5 {[%emt 0:00:00]} 7. Nb3 {[%emt 0:00:00]} Bb6 {[%emt 0:00:18]} 8.
Nfd4 {[%emt 0:00:00]} Bg6 {[%emt 0:02:05]} 9. h4 {[%emt 0:00:00]} h5 {[%emt 0:
01:09]} 10. Bd3 {[%emt 0:00:01]} Bxd3 {[%emt 0:01:30]} 11. Qxd3 {[%emt 0:00:02]
} Nc6 {[%emt 0:00:14]} 12. Bg5 {[%emt 0:01:28]} Qc7 {[%emt 0:01:35]} 13. O-O-O
{[%emt 0:00:44]} Nxd4 {[%emt 0:02:48]} 14. Nxd4 {[%emt 0:00:06]} Bxd4 {[%emt 0:
00:03]} 15. Qxd4 {[%emt 0:00:00]} Nh6 {[%emt 0:00:00]} 16. Kb1 {[%emt 0:01:01]}
Nf5 {[%emt 0:00:05]} 17. Qa4+ {[%emt 0:00:22]} Qc6 {[%emt 0:00:07]} 18. Qa3 {
[%emt 0:00:36]} Rc8 {[%emt 0:00:22]} 19. Rd2 {[%emt 0:00:42]} Qc5 {[%emt 0:00:
03]} 20. Qb3 {[%emt 0:00:58]} b5 {[%emt 0:01:21]} 21. f3 {[%emt 0:02:17]} Qc4 {
[%emt 0:04:27]} 22. Qa3 {[%emt 0:00:08]} Qa4 {[%emt 0:00:00]} 23. Qxa4 {
[%emt 0:00:48]} bxa4 {[%emt 0:00:01]} 24. Rd3 {[%emt 0:01:01]} Rc4 {[%emt 0:00:
30]} 25. b3 {[%emt 0:00:11]} axb3 {[%emt 0:00:10]} 26. axb3 {[%emt 0:00:00]}
Rd4 {[%emt 0:00:33]} 27. Rxd4 {[%emt 0:02:22]} Nxd4 {[%emt 0:00:00]} 28. Rd1 {
[%emt 0:00:15]} Nc6 {[%emt 0:00:09]} 29. c4 {[%emt 0:00:06]} d4 {[%emt 0:00:44]
} 30. Kc2 {[%emt 0:01:45]} O-O {[%emt 0:00:06]} 31. Ra1 {[%emt 0:00:30]} Rb8 {
[%emt 0:00:00]} 32. Bd2 {[%emt 0:00:14]} Rb7 {[%emt 0:00:57]} 33. f4 {[%emt 0:
00:48]} Kf8 {[%emt 0:00:08]} 34. Ra4 {[%emt 0:00:22]} Ke8 {[%emt 0:00:08]} 35.
b4 {[%emt 0:00:05]} Ne7 {[%emt 0:00:09]} 36. Be1 {[%emt 0:00:48]} Nf5 {[%emt 0:
00:05]} 37. Bf2 {[%emt 0:00:03]} Kd7 {[%emt 0:00:05]} 38. Kd3 {[%emt 0:00:00]}
Kc6 {[%emt 0:00:05]} 39. Bxd4 {[%emt 0:00:27]} Rd7 {[%emt 0:00:04]} 40. Ra6+ {
[%emt 0:00:00]} 1-0

[Event "RUS-ch Rapid 2021"]
[Site "Sochi"]
[Date "2021.10.13"]
[Round "6.8"]
[White "Ivlev, Aleksey"]
[Black "Iljiushenok, Ilia"]
[Result "0-1"]
[ECO "E04"]
[WhiteElo "2315"]
[BlackElo "2554"]
[Annotator "RC"]
[PlyCount "78"]
[EventDate "2021.10.12"]
[EventType "swiss"]
[EventCountry "RUS"]
[SourceTitle "playchess.com"]
[Source "ChessBase"]
[SourceQuality "1"]
[TimeControl "900+10"]

1. d4 {[%emt 0:00:04]} Nf6 {[%emt 0:00:00]} 2. c4 {[%emt 0:00:00]} e6 {[%emt 0:
00:00]} 3. Nf3 {[%emt 0:00:03]} d5 {[%emt 0:00:12]} 4. g3 {[%emt 0:00:04]} Bb4+
{[%emt 0:00:00]} 5. Nbd2 {[%emt 0:00:00]} dxc4 {[%emt 0:00:01]} 6. Bg2 {
[%emt 0:00:03]} b5 {[%emt 0:00:00]} 7. O-O {[%emt 0:00:01]} a5 {[%emt 0:00:23]}
8. a4 {[%emt 0:01:44]} c6 {[%emt 0:00:03]} 9. Qc2 {[%emt 0:00:12]} O-O {
[%emt 0:01:04]} 10. b3 {[%emt 0:00:47]} c3 {[%emt 0:00:18]} 11. Nb1 {[%emt 0:
00:20]} bxa4 {[%emt 0:00:13]} 12. Rxa4 {[%emt 0:00:37]} c5 {[%emt 0:00:41]} 13.
dxc5 {[%emt 0:00:37]} Bb7 {[%emt 0:00:48]} 14. Nxc3 {[%emt 0:00:37]} Nbd7 {
[%emt 0:00:29]} 15. Rd1 {[%emt 0:05:00]} Qe7 {[%emt 0:00:18]} 16. Ba3 {[%emt 0:
02:59]} Qxc5 {[%emt 0:00:37]} 17. Bb2 {[%emt 0:01:12]} Rac8 {[%emt 0:01:17]}
18. Qd3 {[%emt 0:01:44]} Nb6 {[%emt 0:01:45]} 19. Rxb4 {[%emt 0:01:21]} axb4 {
[%emt 0:00:38]} 20. Nb1 {[%emt 0:00:00]} Be4 {[%emt 0:01:12]} 21. Qd2 {[%emt 0:
00:13]} Bxb1 {[%emt 0:01:44]} 22. Rxb1 {[%emt 0:00:00]} Ne4 {[%emt 0:00:03]}
23. Qe1 {[%emt 0:00:01]} Nc3 {[%emt 0:00:18]} 24. Rc1 {[%emt 0:00:25]} Rfd8 {
[%emt 0:00:03]} 25. Nd2 {[%emt 0:00:48]} Qb5 {[%emt 0:02:54]} 26. Bf3 {[%emt 0:
00:04]} e5 {[%emt 0:00:24]} 27. Bg4 {[%emt 0:00:19]} f5 {[%emt 0:00:33]} 28.
Bxf5 {[%emt 0:00:11]} Nxe2+ {[%emt 0:00:00]} 29. Kg2 {[%emt 0:00:17]} Nxc1 {
[%emt 0:00:11]} 30. Bxc8 {[%emt 0:00:15]} Nd3 {[%emt 0:00:15]} 31. Be6+ {
[%emt 0:00:01]} Kh8 {[%emt 0:00:00]} 32. Qe4 {[%emt 0:00:21]} Nxb2 {[%emt 0:00:
30]} 33. Nf3 {[%emt 0:00:00]} Rd1 {[%emt 0:01:35]} 34. Kh3 {[%emt 0:00:11]} Nd3
{[%emt 0:00:02]} 35. Qf5 {[%emt 0:00:16]} Qe8 {[%emt 0:00:55]} 36. Ng5 {
[%emt 0:00:00]} Qh5+ {[%emt 0:00:02]} 37. Kg2 {[%emt 0:00:08]} Ne1+ {[%emt 0:
00:02]} 38. Kf1 {[%emt 0:00:00]} Nf3+ {[%emt 0:00:00]} 39. Kg2 {[%emt 0:00:02]}
Rg1# {[%emt 0:00:05]} 0-1

[Event "RUS-ch Rapid 2021"]
[Site "Sochi"]
[Date "2021.10.13"]
[Round "6.10"]
[White "Bocharov, Dmitry"]
[Black "Oganian, Miran"]
[Result "1-0"]
[ECO "B38"]
[WhiteElo "2517"]
[BlackElo "2441"]
[Annotator "RC"]
[PlyCount "91"]
[EventDate "2021.10.12"]
[EventType "swiss"]
[EventCountry "RUS"]
[SourceTitle "playchess.com"]
[Source "ChessBase"]
[SourceQuality "1"]
[TimeControl "900+10"]

1. e4 {[%emt 0:00:04]} c5 {[%emt 0:00:04]} 2. Nf3 {[%emt 0:00:07]} g6 {[%emt 0:
00:41]} 3. c4 {[%emt 0:00:12]} Bg7 {[%emt 0:00:04]} 4. d4 {[%emt 0:00:00]} cxd4
{[%emt 0:00:03]} 5. Nxd4 {[%emt 0:00:00]} Nc6 {[%emt 0:00:00]} 6. Nc2 {[%emt 0:
00:04]} Nf6 {[%emt 0:00:08]} 7. Nc3 {[%emt 0:00:00]} O-O {[%emt 0:00:01]} 8.
Be2 {[%emt 0:00:06]} d6 {[%emt 0:01:15]} 9. O-O {[%emt 0:00:04]} Bd7 {[%emt 0:
00:34]} 10. Be3 {[%emt 0:00:55]} Qa5 {[%emt 0:00:31]} 11. Bd2 {[%emt 0:02:56]}
Rfc8 {[%emt 0:00:13]} 12. Rc1 {[%emt 0:00:26]} Qd8 {[%emt 0:01:25]} 13. b3 {
[%emt 0:00:21]} a6 {[%emt 0:00:32]} 14. Kh1 {[%emt 0:00:31]} Qb6 {[%emt 0:01:
59]} 15. f3 {[%emt 0:01:20]} Be8 {[%emt 0:00:54]} 16. f4 {[%emt 0:00:34]} a5 {
[%emt 0:01:09]} 17. Be3 {[%emt 0:01:34]} Qd8 {[%emt 0:00:00]} 18. Qd2 {[%emt 0:
00:03]} Nb4 {[%emt 0:00:19]} 19. Bf3 {[%emt 0:00:58]} Nxc2 {[%emt 0:01:13]} 20.
Rxc2 {[%emt 0:00:00]} Bc6 {[%emt 0:00:03]} 21. Rd1 {[%emt 0:00:24]} Nd7 {
[%emt 0:00:17]} 22. Qe2 {[%emt 0:02:55]} Qe8 {[%emt 0:01:55]} 23. Nd5 {[%emt 0:
00:41]} Bxd5 {[%emt 0:00:33]} 24. Rxd5 {[%emt 0:00:31]} Rc7 {[%emt 0:00:33]}
25. Rcd2 {[%emt 0:00:17]} a4 {[%emt 0:00:29]} 26. g3 {[%emt 0:01:13]} axb3 {
[%emt 0:00:00]} 27. axb3 {[%emt 0:00:00]} Ra3 {[%emt 0:00:12]} 28. R5d3 {
[%emt 0:01:09]} h5 {[%emt 0:01:02]} 29. e5 {[%emt 0:00:18]} Kh7 {[%emt 0:01:52]
} 30. exd6 {[%emt 0:01:07]} exd6 {[%emt 0:00:00]} 31. Bf2 {[%emt 0:00:09]} Qxe2
{[%emt 0:00:10]} 32. Rxe2 {[%emt 0:00:02]} Nc5 {[%emt 0:00:35]} 33. Rxd6 {
[%emt 0:00:10]} Nxb3 {[%emt 0:00:32]} 34. Bd5 {[%emt 0:00:26]} Na5 {[%emt 0:01:
01]} 35. c5 {[%emt 0:00:32]} h4 {[%emt 0:00:26]} 36. Kg2 {[%emt 0:00:03]} Bf8 {
[%emt 0:00:13]} 37. Rd8 {[%emt 0:00:06]} Be7 {[%emt 0:00:12]} 38. Rxe7 {
[%emt 0:00:19]} Rxe7 {[%emt 0:00:02]} 39. Bd4 {[%emt 0:00:00]} g5 {[%emt 0:00:
17]} 40. f5 {[%emt 0:00:20]} f6 {[%emt 0:00:10]} 41. Bxf6 {[%emt 0:00:08]} Rg7
{[%emt 0:00:10]} 42. Bxg7 {[%emt 0:00:26]} Kxg7 {[%emt 0:00:00]} 43. Rd6 {
[%emt 0:00:01]} hxg3 {[%emt 0:00:18]} 44. f6+ {[%emt 0:00:07]} Kh7 {[%emt 0:00:
09]} 45. f7 {[%emt 0:00:10]} Kg7 {[%emt 0:00:13]} 46. Rd8 {[%emt 0:00:04]} 1-0

[Event "RUS-ch Rapid 2021"]
[Site "Sochi"]
[Date "2021.10.13"]
[Round "6.11"]
[White "Pridorozhni, Aleksei"]
[Black "Bryakin, Mikhail"]
[Result "1-0"]
[ECO "B11"]
[WhiteElo "2564"]
[BlackElo "2498"]
[Annotator "RC"]
[PlyCount "188"]
[EventDate "2021.10.12"]
[EventType "swiss"]
[EventCountry "RUS"]
[SourceTitle "playchess.com"]
[Source "ChessBase"]
[SourceQuality "1"]
[TimeControl "900+10"]

1. e4 {[%emt 0:00:08]} c6 {[%emt 0:00:00]} 2. Nc3 {[%emt 0:00:00]} d5 {[%emt 0:
00:00]} 3. Nf3 {[%emt 0:00:00]} Bg4 {[%emt 0:00:08]} 4. h3 {[%emt 0:00:00]}
Bxf3 {[%emt 0:00:02]} 5. Qxf3 {[%emt 0:00:00]} e6 {[%emt 0:00:04]} 6. a3 {
[%emt 0:00:01]} d4 {[%emt 0:00:10]} 7. Nb1 {[%emt 0:00:34]} Qa5 {[%emt 0:00:00]
} 8. g3 {[%emt 0:00:08]} h5 {[%emt 0:00:02]} 9. h4 {[%emt 0:00:14]} Nd7 {
[%emt 0:00:25]} 10. b4 {[%emt 0:03:14]} Qb6 {[%emt 0:00:18]} 11. Bb2 {[%emt 0:
00:04]} a5 {[%emt 0:01:00]} 12. c3 {[%emt 0:00:04]} Ne5 {[%emt 0:00:37]} 13.
Qd1 {[%emt 0:00:30]} d3 {[%emt 0:00:23]} 14. Bg2 {[%emt 0:00:48]} a4 {[%emt 0:
03:32]} 15. c4 {[%emt 0:00:09]} Nxc4 {[%emt 0:00:08]} 16. Qc1 {[%emt 0:00:22]}
Nxb2 {[%emt 0:00:30]} 17. Qxb2 {[%emt 0:00:00]} Nf6 {[%emt 0:00:28]} 18. Qa2 {
[%emt 0:01:33]} Ng4 {[%emt 0:00:46]} 19. Rf1 {[%emt 0:00:05]} Bd6 {[%emt 0:00:
25]} 20. Nc3 {[%emt 0:00:17]} Qd4 {[%emt 0:02:30]} 21. Nd1 {[%emt 0:01:43]}
O-O-O {[%emt 0:01:01]} 22. Rc1 {[%emt 0:00:05]} Kb8 {[%emt 0:00:25]} 23. Rc4 {
[%emt 0:01:09]} Qa7 {[%emt 0:00:09]} 24. Qb1 {[%emt 0:00:52]} Qa6 {[%emt 0:01:
47]} 25. Rc3 {[%emt 0:01:25]} Be5 {[%emt 0:00:11]} 26. Rc5 {[%emt 0:00:04]} Bd4
{[%emt 0:01:01]} 27. Rc1 {[%emt 0:00:09]} f5 {[%emt 0:00:24]} 28. Qa2 {[%emt 0:
00:55]} Rhe8 {[%emt 0:00:33]} 29. Qc4 {[%emt 0:00:18]} Qb6 {[%emt 0:00:26]} 30.
Rb1 {[%emt 0:00:02]} Ne5 {[%emt 0:00:33]} 31. Qa2 {[%emt 0:00:20]} f4 {[%emt 0:
00:01]} 32. gxf4 {[%emt 0:00:19]} Ng6 {[%emt 0:00:01]} 33. Ne3 {[%emt 0:00:04]}
Nxf4 {[%emt 0:00:06]} 34. Bf3 {[%emt 0:00:04]} Qc7 {[%emt 0:00:25]} 35. b5 {
[%emt 0:00:17]} cxb5 {[%emt 0:00:06]} 36. Rxb5 {[%emt 0:00:09]} Qc1+ {[%emt 0:
00:35]} 37. Nd1 {[%emt 0:00:00]} Rc8 {[%emt 0:00:33]} 38. Qb1 {[%emt 0:00:24]}
Qxb1 {[%emt 0:00:27]} 39. Rxb1 {[%emt 0:00:00]} Rc5 {[%emt 0:00:35]} 40. Rb4 {
[%emt 0:00:24]} Bf6 {[%emt 0:00:02]} 41. Rxa4 {[%emt 0:00:10]} Bxh4 {[%emt 0:
00:04]} 42. Rh1 {[%emt 0:00:29]} Bf6 {[%emt 0:00:06]} 43. Rb4 {[%emt 0:00:19]}
e5 {[%emt 0:00:33]} 44. Bxh5 {[%emt 0:00:32]} Rh8 {[%emt 0:00:00]} 45. Bf3 {
[%emt 0:00:00]} Rxh1+ {[%emt 0:00:04]} 46. Bxh1 {[%emt 0:00:02]} Rc2 {[%emt 0:
00:14]} 47. Rb3 {[%emt 0:00:20]} Be7 {[%emt 0:00:09]} 48. a4 {[%emt 0:00:33]}
Bc5 {[%emt 0:00:15]} 49. Bf3 {[%emt 0:00:05]} Bd4 {[%emt 0:00:21]} 50. Rb1 {
[%emt 0:00:37]} Ra2 {[%emt 0:00:05]} 51. Ne3 {[%emt 0:00:18]} Rxa4 {[%emt 0:00:
22]} 52. Nd5 {[%emt 0:00:12]} g5 {[%emt 0:00:29]} 53. Nxf4 {[%emt 0:00:08]}
gxf4 {[%emt 0:00:02]} 54. Bg4 {[%emt 0:00:06]} Kc7 {[%emt 0:00:12]} 55. Bd1 {
[%emt 0:01:20]} Ra5 {[%emt 0:00:18]} 56. Rb3 {[%emt 0:00:04]} b5 {[%emt 0:00:
09]} 57. Rxd3 {[%emt 0:00:03]} Kb6 {[%emt 0:00:08]} 58. f3 {[%emt 0:00:10]} Kc5
{[%emt 0:00:04]} 59. Bb3 {[%emt 0:00:07]} Ra1+ {[%emt 0:00:02]} 60. Ke2 {
[%emt 0:00:01]} Rg1 {[%emt 0:00:16]} 61. Bd5 {[%emt 0:00:03]} Kb4 {[%emt 0:00:
19]} 62. Rb3+ {[%emt 0:00:12]} Ka4 {[%emt 0:00:02]} 63. Rd3 {[%emt 0:00:00]}
Rb1 {[%emt 0:00:07]} 64. Bc6 {[%emt 0:00:03]} Ka5 {[%emt 0:00:11]} 65. Bd5 {
[%emt 0:00:04]} Kb4 {[%emt 0:00:13]} 66. Be6 {[%emt 0:00:07]} Ra1 {[%emt 0:00:
11]} 67. Bd5 {[%emt 0:00:14]} Kc5 {[%emt 0:00:00]} 68. Rb3 {[%emt 0:00:06]} b4
{[%emt 0:00:02]} 69. Rd3 {[%emt 0:00:22]} Kd6 {[%emt 0:00:13]} 70. Rb3 {
[%emt 0:00:04]} Kc5 {[%emt 0:00:13]} 71. Rd3 {[%emt 0:00:01]} Ra7 {[%emt 0:00:
05]} 72. Kd1 {[%emt 0:00:07]} Ra1+ {[%emt 0:00:22]} 73. Kc2 {[%emt 0:00:01]}
Rf1 {[%emt 0:00:05]} 74. Be6 {[%emt 0:00:04]} Rg1 {[%emt 0:00:08]} 75. Bf7 {
[%emt 0:00:03]} Rg7 {[%emt 0:00:06]} 76. Be6 {[%emt 0:00:04]} Kb5 {[%emt 0:00:
04]} 77. Bb3 {[%emt 0:00:04]} Rc7+ {[%emt 0:00:02]} 78. Kb1 {[%emt 0:00:04]}
Ra7 {[%emt 0:00:22]} 79. Kc2 {[%emt 0:00:03]} Ra3 {[%emt 0:00:06]} 80. Be6 {
[%emt 0:00:06]} Ra1 {[%emt 0:00:18]} 81. Bb3 {[%emt 0:00:05]} Kc5 {[%emt 0:00:
22]} 82. Be6 {[%emt 0:00:04]} Ra6 {[%emt 0:00:08]} 83. Bb3 {[%emt 0:00:04]} Rh6
{[%emt 0:00:07]} 84. Bd5 {[%emt 0:00:02]} Rh3 {[%emt 0:00:01]} 85. Be6 {
[%emt 0:00:04]} Rg3 {[%emt 0:00:04]} 86. Bd5 {[%emt 0:00:01]} Rg2 {[%emt 0:00:
07]} 87. Be6 {[%emt 0:00:04]} Rf2 {[%emt 0:00:01]} 88. Bd5 {[%emt 0:00:03]} Rf1
{[%emt 0:00:13]} 89. Be6 {[%emt 0:00:02]} Kd6 {[%emt 0:00:01]} 90. Bd5 {
[%emt 0:00:04]} Ke7 {[%emt 0:00:14]} 91. Bc4 {[%emt 0:00:06]} Ra1 {[%emt 0:00:
06]} 92. Rb3 {[%emt 0:00:21]} Bc5 {[%emt 0:00:11]} 93. Rb1 {[%emt 0:00:09]} Ra3
{[%emt 0:00:19]} 94. Bb3 {[%emt 0:00:04]} Bd4 {[%emt 0:00:27]} 1-0

[Event "RUS-ch Rapid 2021"]
[Site "Sochi"]
[Date "2021.10.13"]
[Round "6.12"]
[White "Zubritskiy, Artyom"]
[Black "Triapishko, Alexandr"]
[Result "0-1"]
[ECO "A23"]
[WhiteElo "2442"]
[BlackElo "2506"]
[Annotator "ChessBase"]
[PlyCount "56"]
[EventDate "2021.10.12"]
[EventType "swiss"]
[EventCountry "RUS"]
[SourceTitle "playchess.com"]
[Source "ChessBase"]
[SourceQuality "1"]
[TimeControl "900+10"]

1. c4 {[%emt 0:00:04]} e5 {[%emt 0:02:26]} 2. g3 {[%emt 0:00:00]} Nf6 {[%emt 0:
00:03]} 3. Bg2 {[%emt 0:00:04]} Bc5 {[%emt 0:00:16]} 4. Nc3 {[%emt 0:00:00]} c6
{[%emt 0:00:09]} 5. e3 {[%emt 0:00:31]} O-O {[%emt 0:00:17]} 6. Nge2 {[%emt 0:
00:15]} d5 {[%emt 0:00:11]} 7. cxd5 {[%emt 0:00:13]} Nxd5 {[%emt 0:00:00]} 8.
O-O {[%emt 0:01:23]} Nxc3 {[%emt 0:01:42]} 9. Nxc3 {[%emt 0:01:54]} Bf5 {
[%emt 0:00:38]} 10. Ne4 {[%emt 0:00:32]} Na6 {[%emt 0:02:03]} 11. Qe2 {[%emt 0:
01:13]} Qd7 {[%emt 0:01:26]} 12. f4 {[%emt 0:02:02]} exf4 {[%emt 0:01:00]} 13.
Rxf4 {[%emt 0:00:04]} Bg6 {[%emt 0:00:18]} 14. b4 {[%emt 0:05:31]} Bxb4 {
[%emt 0:02:49]} 15. Bb2 {[%emt 0:00:00]} Rad8 {[%emt 0:00:57]} 16. Raf1 {
[%emt 0:00:43]} Bd6 {[%emt 0:01:01]} 17. Nxd6 {[%emt 0:01:56]} Qxd6 {[%emt 0:
00:06]} 18. Bd4 {[%emt 0:01:00]} Nc7 {[%emt 0:00:12]} 19. Bh3 {[%emt 0:00:41]}
c5 {[%emt 0:00:18]} 20. Ba1 {[%emt 0:00:01]} Qxd2 {[%emt 0:00:14]} 21. Qc4 {
[%emt 0:00:18]} Qxe3+ {[%emt 0:00:41]} 22. Kh1 {[%emt 0:00:07]} Nd5 {[%emt 0:
00:36]} 23. Rh4 {[%emt 0:00:13]} Qd3 {[%emt 0:00:29]} 24. Qc1 {[%emt 0:00:06]}
Ne3 {[%emt 0:00:26]} 25. Re1 {[%emt 0:00:08]} Nc2 {[%emt 0:00:15]} 26. Bf1 {
[%emt 0:00:19]} Qd5+ {[%emt 0:00:27]} 27. Bg2 {[%emt 0:00:00]} Qxa2 {[%emt 0:
00:05]} 28. Bxg7 {[%emt 0:00:14]} Nxe1 {[%emt 0:00:08]} 0-1

[Event "RUS-ch Rapid 2021"]
[Site "Sochi"]
[Date "2021.10.13"]
[Round "6.13"]
[White "Rozum, Ivan"]
[Black "Gitelson, Arkady"]
[Result "1-0"]
[ECO "E62"]
[WhiteElo "2529"]
[BlackElo "2188"]
[Annotator "RC"]
[PlyCount "99"]
[EventDate "2021.10.12"]
[EventType "swiss"]
[EventCountry "RUS"]
[SourceTitle "playchess.com"]
[Source "ChessBase"]
[SourceQuality "1"]
[TimeControl "900+10"]

1. Nf3 {[%emt 0:01:23]} Nf6 {[%emt 0:00:05]} 2. g3 {[%emt 0:00:03]} g6 {
[%emt 0:00:22]} 3. Bg2 {[%emt 0:00:04]} Bg7 {[%emt 0:00:00]} 4. d4 {[%emt 0:00:
02]} O-O {[%emt 0:00:09]} 5. c4 {[%emt 0:00:00]} d6 {[%emt 0:00:00]} 6. O-O {
[%emt 0:00:06]} c6 {[%emt 0:00:12]} 7. Nc3 {[%emt 0:00:00]} Bf5 {[%emt 0:00:01]
} 8. Re1 {[%emt 0:00:13]} Ne4 {[%emt 0:00:00]} 9. Qb3 {[%emt 0:00:02]} Nxc3 {
[%emt 0:00:35]} 10. bxc3 {[%emt 0:00:07]} Qc7 {[%emt 0:00:04]} 11. e4 {[%emt 0:
00:08]} Be6 {[%emt 0:00:14]} 12. Ng5 {[%emt 0:00:36]} Bd7 {[%emt 0:00:23]} 13.
e5 {[%emt 0:03:43]} dxe5 {[%emt 0:03:27]} 14. Ba3 {[%emt 0:00:03]} h6 {[%emt 0:
01:47]} 15. Nf3 {[%emt 0:00:15]} exd4 {[%emt 0:03:30]} 16. cxd4 {[%emt 0:01:21]
} Re8 {[%emt 0:02:06]} 17. Rab1 {[%emt 0:01:06]} Bc8 {[%emt 0:02:02]} 18. d5 {
[%emt 0:00:58]} c5 {[%emt 0:00:00]} 19. Rbd1 {[%emt 0:01:07]} Bd7 {[%emt 0:00:
51]} 20. Rxe7 {[%emt 0:02:05]} Qb6 {[%emt 0:01:39]} 21. Rxe8+ {[%emt 0:01:40]}
Bxe8 {[%emt 0:00:00]} 22. Bxc5 {[%emt 0:00:11]} Qa6 {[%emt 0:00:36]} 23. Rb1 {
[%emt 0:01:46]} b6 {[%emt 0:00:03]} 24. Bd4 {[%emt 0:00:19]} Ba4 {[%emt 0:00:
00]} 25. Qc3 {[%emt 0:00:51]} Bxd4 {[%emt 0:00:06]} 26. Nxd4 {[%emt 0:00:07]}
Nd7 {[%emt 0:00:00]} 27. Nc6 {[%emt 0:00:07]} Re8 {[%emt 0:00:14]} 28. h4 {
[%emt 0:00:24]} h5 {[%emt 0:00:16]} 29. Re1 {[%emt 0:00:26]} Rxe1+ {[%emt 0:00:
54]} 30. Qxe1 {[%emt 0:00:00]} Qxc4 {[%emt 0:00:02]} 31. Qe7 {[%emt 0:00:26]}
Qg4 {[%emt 0:00:29]} 32. Kh2 {[%emt 0:00:26]} Nf8 {[%emt 0:00:06]} 33. Ne5 {
[%emt 0:00:12]} Qf5 {[%emt 0:00:03]} 34. f4 {[%emt 0:00:06]} Kg7 {[%emt 0:00:
18]} 35. Qxa7 {[%emt 0:00:15]} b5 {[%emt 0:00:10]} 36. Qe7 {[%emt 0:00:06]} Qf6
{[%emt 0:00:05]} 37. d6 {[%emt 0:00:00]} b4 {[%emt 0:00:00]} 38. Bd5 {[%emt 0:
00:08]} Qf5 {[%emt 0:00:15]} 39. Qxf7+ {[%emt 0:00:15]} Qxf7 {[%emt 0:00:00]}
40. Bxf7 {[%emt 0:00:00]} Nd7 {[%emt 0:00:16]} 41. Bb3 {[%emt 0:00:15]} Bb5 {
[%emt 0:00:07]} 42. Kg1 {[%emt 0:00:15]} Kf6 {[%emt 0:00:06]} 43. Nxd7+ {
[%emt 0:00:07]} Bxd7 {[%emt 0:00:00]} 44. Kf2 {[%emt 0:00:01]} Kf5 {[%emt 0:00:
02]} 45. Bd5 {[%emt 0:00:01]} Bb5 {[%emt 0:00:16]} 46. Ke3 {[%emt 0:00:04]} Bd7
{[%emt 0:00:26]} 47. Be4+ {[%emt 0:00:07]} Kf6 {[%emt 0:00:00]} 48. Kd4 {
[%emt 0:00:00]} Be8 {[%emt 0:00:05]} 49. Kc5 {[%emt 0:00:01]} Bf7 {[%emt 0:00:
14]} 50. Kb6 {[%emt 0:00:17]} 1-0

[Event "RUS-ch Rapid 2021"]
[Site "Sochi"]
[Date "2021.10.13"]
[Round "6.14"]
[White "Dreev, Aleksey"]
[Black "Lobanov, Sergei"]
[Result "1-0"]
[ECO "E32"]
[WhiteElo "2635"]
[BlackElo "2501"]
[Annotator "RC"]
[PlyCount "41"]
[EventDate "2021.10.12"]
[EventType "swiss"]
[EventCountry "RUS"]
[SourceTitle "playchess.com"]
[Source "ChessBase"]
[SourceQuality "1"]
[TimeControl "900+10"]

1. d4 {[%emt 0:00:00]} Nf6 {[%emt 0:00:04]} 2. c4 {[%emt 0:00:11]} e6 {[%emt 0:
00:01]} 3. Nc3 {[%emt 0:00:00]} Bb4 {[%emt 0:00:00]} 4. Qc2 {[%emt 0:00:00]}
O-O {[%emt 0:00:04]} 5. a3 {[%emt 0:00:00]} Bxc3+ {[%emt 0:00:00]} 6. Qxc3 {
[%emt 0:00:00]} b6 {[%emt 0:00:00]} 7. Bg5 {[%emt 0:00:06]} Bb7 {[%emt 0:00:00]
} 8. e3 {[%emt 0:00:38]} d6 {[%emt 0:00:18]} 9. Nf3 {[%emt 0:00:19]} Nbd7 {
[%emt 0:00:24]} 10. Nd2 {[%emt 0:00:04]} c5 {[%emt 0:00:13]} 11. dxc5 {[%emt 0:
00:15]} bxc5 {[%emt 0:01:48]} 12. Bd3 {[%emt 0:00:04]} h6 {[%emt 0:00:15]} 13.
Bh4 {[%emt 0:00:07]} Bxg2 {[%emt 0:04:52]} 14. Rg1 {[%emt 0:00:03]} Bb7 {
[%emt 0:00:05]} 15. O-O-O {[%emt 0:01:56]} Kh8 {[%emt 0:06:36]} 16. Ne4 {
[%emt 0:01:31]} Qe7 {[%emt 0:01:45]} 17. Nxf6 {[%emt 0:01:23]} gxf6 {[%emt 0:
00:03]} 18. Bc2 {[%emt 0:00:11]} Rg8 {[%emt 0:01:06]} 19. Qd3 {[%emt 0:00:36]}
Nf8 {[%emt 0:00:13]} 20. Qxd6 {[%emt 0:00:22]} Qxd6 {[%emt 0:00:02]} 21. Bxf6+
{[%emt 0:00:03]} 1-0

[Event "RUS-ch Rapid 2021"]
[Site "Sochi"]
[Date "2021.10.13"]
[Round "6.15"]
[White "Kobalia, Mikhail"]
[Black "Obgolts, Erik"]
[Result "1-0"]
[ECO "B10"]
[WhiteElo "2600"]
[BlackElo "2430"]
[Annotator "RC"]
[PlyCount "85"]
[EventDate "2021.10.12"]
[EventType "swiss"]
[EventCountry "RUS"]
[SourceTitle "playchess.com"]
[Source "ChessBase"]
[SourceQuality "1"]
[TimeControl "900+10"]

1. e4 {[%emt 0:00:00]} c6 {[%emt 0:00:04]} 2. Nf3 {[%emt 0:00:11]} d5 {[%emt 0:
00:01]} 3. d3 {[%emt 0:00:03]} Bg4 {[%emt 0:00:29]} 4. h3 {[%emt 0:00:00]} Bh5
{[%emt 0:00:00]} 5. g4 {[%emt 0:00:00]} Bg6 {[%emt 0:00:05]} 6. Qe2 {[%emt 0:
00:00]} e6 {[%emt 0:00:20]} 7. h4 {[%emt 0:00:04]} h5 {[%emt 0:00:21]} 8. g5 {
[%emt 0:01:15]} Nd7 {[%emt 0:01:09]} 9. Nc3 {[%emt 0:00:06]} Bb4 {[%emt 0:01:
10]} 10. Bd2 {[%emt 0:00:32]} Ne7 {[%emt 0:00:09]} 11. Bg2 {[%emt 0:02:33]} Qc7
{[%emt 0:02:42]} 12. Nh2 {[%emt 0:00:03]} Bd6 {[%emt 0:01:23]} 13. Nf1 {
[%emt 0:00:00]} O-O-O {[%emt 0:00:03]} 14. Qe3 {[%emt 0:02:09]} Bc5 {[%emt 0:
01:38]} 15. Qg3 {[%emt 0:00:05]} dxe4 {[%emt 0:02:09]} 16. Qxc7+ {[%emt 0:00:
54]} Kxc7 {[%emt 0:00:05]} 17. dxe4 {[%emt 0:00:00]} e5 {[%emt 0:00:22]} 18.
Ng3 {[%emt 0:00:21]} Nf8 {[%emt 0:00:45]} 19. Rf1 {[%emt 0:00:13]} Ne6 {
[%emt 0:00:00]} 20. Nce2 {[%emt 0:00:05]} f5 {[%emt 0:01:04]} 21. gxf6 {
[%emt 0:01:20]} gxf6 {[%emt 0:00:03]} 22. O-O-O {[%emt 0:00:18]} Bd6 {[%emt 0:
01:11]} 23. Bh3 {[%emt 0:00:56]} Nf4 {[%emt 0:00:17]} 24. Nxf4 {[%emt 0:00:07]}
exf4 {[%emt 0:00:02]} 25. Ne2 {[%emt 0:00:01]} f3 {[%emt 0:02:31]} 26. Nd4 {
[%emt 0:00:36]} Kb8 {[%emt 0:00:05]} 27. Ne6 {[%emt 0:00:29]} Rde8 {[%emt 0:00:
15]} 28. Bc3 {[%emt 0:00:28]} Be5 {[%emt 0:00:00]} 29. Bxe5+ {[%emt 0:00:00]}
fxe5 {[%emt 0:00:03]} 30. Rd7 {[%emt 0:00:19]} Bxe4 {[%emt 0:00:50]} 31. Ng7 {
[%emt 0:01:26]} Ng6 {[%emt 0:00:00]} 32. Nxe8 {[%emt 0:00:00]} Rxe8 {[%emt 0:
00:07]} 33. Re1 {[%emt 0:00:29]} Bd5 {[%emt 0:00:00]} 34. Rg7 {[%emt 0:00:26]}
Nxh4 {[%emt 0:00:23]} 35. Bd7 {[%emt 0:00:40]} Rh8 {[%emt 0:00:31]} 36. Rxe5 {
[%emt 0:00:02]} Ng2 {[%emt 0:00:00]} 37. Ree7 {[%emt 0:00:13]} Nf4 {[%emt 0:00:
22]} 38. Bf5 {[%emt 0:00:09]} c5 {[%emt 0:00:00]} 39. Be4 {[%emt 0:00:18]} Bxe4
{[%emt 0:00:10]} 40. Rxe4 {[%emt 0:00:00]} Ne2+ {[%emt 0:00:33]} 41. Kb1 {
[%emt 0:00:49]} Rd8 {[%emt 0:00:13]} 42. c3 {[%emt 0:00:00]} c4 {[%emt 0:00:24]
} 43. Ree7 {[%emt 0:00:16]} 1-0